bitfinex-derivatives/quotes_BTCF0:USTF0_20250213
["timestamp","ask_amount","ask_price","bid_price","bid_amount"]
[1739472705614,0.00556503,95876.0,95871.0,0.2085816]
[1739472705915,0.2085814,95872.0,95871.0,0.2085816]
[1739472707809,0.2085814,95872.0,95871.0,0.2095816]
[1739472708507,0.2085814,95872.0,95871.0,0.2085816]
[1739472708703,0.2085814,95872.0,95871.0,0.2105816]
[1739472709102,0.2085814,95872.0,95871.0,0.2095816]
[1739472709302,0.001,95872.0,95871.0,0.2095816]
[1739472710109,0.001,95872.0,95871.0,0.2085816]
[1739472711017,0.2095813,95872.0,95871.0,0.2085816]
[1739472711415,0.001,95872.0,95871.0,0.2085816]
[1739472713807,0.00156503,95876.0,95875.0,0.2085748]
[1739472714011,0.00015644,95885.0,95884.0,0.2085553]
[1739472714218,0.01015644,95885.0,95884.0,0.5693553]
[1739472714822,0.00156475,95905.0,95904.0,0.2085118]
[1739472715117,0.07156475,95905.0,95904.0,0.5693118]
[1739472715918,0.07856475,95905.0,95904.0,0.57980936]
[1739472716916,0.07856475,95905.0,95904.0,0.87980936]
[1739472717515,0.08556475,95905.0,95904.0,0.87980936]
[1739472718111,0.08556475,95905.0,95904.0,0.301]
[1739472718419,0.44636475,95905.0,95904.0,0.301]
[1739472718619,0.2085661,95879.0,95851.0,0.3608]
[1739472718816,0.3185661,95879.0,95870.0,0.2085844]
[1739472719011,0.3185661,95879.0,95864.0,0.2085987]
[1739472719224,0.2085857,95870.0,95869.0,0.00953139]
[1739472719419,0.4708,95870.0,95857.0,0.001]
[1739472719620,0.3608,95858.0,95849.0,0.18733807]
[1739472719838,0.11,95858.0,95854.0,0.00015644]
[1739472720122,0.058209,95855.0,95854.0,0.00015644]
[1739472720311,0.3186184,95855.0,95854.0,0.00015644]
[1739472720827,0.11,95855.0,95854.0,0.00015644]
[1739472721330,0.114,95855.0,95854.0,0.00015644]
[1739472721929,0.118,95855.0,95854.0,0.00015644]
[1739472722513,0.116,95855.0,95854.0,0.00015644]
[1739472723117,0.114,95855.0,95854.0,0.11065644]
[1739472723717,0.004,95855.0,95854.0,0.11065644]
[1739472723916,0.1061,95884.0,95854.0,0.11065644]
[1739472723917,0.1061,95884.0,95872.0,0.2085813]
[1739472724122,0.02015644,95873.0,95872.0,0.5693813]
[1739472724718,0.02015644,95873.0,95872.0,0.3608]
[1739472725726,0.2085822,95872.0,95866.0,0.2085929]
[1739472725926,0.3608,95868.0,95854.0,0.00215644]
[1739472726226,0.3608,95868.0,95804.0,0.3608]
[1739472726227,0.2087272,95805.0,95804.0,0.3608]
[1739472726420,0.1251832,95814.0,95804.0,0.3608]
[1739472726613,0.3608,95805.0,95804.0,0.00966839]
[1739472726813,0.3608,95805.0,95796.0,0.00156582]
[1739472726814,0.6795272,95805.0,95796.0,0.00156582]
[1739472727112,0.11,95805.0,95797.0,0.2087428]
[1739472727316,0.111,95805.0,95804.0,0.004]
[1739472729416,0.3197272,95805.0,95804.0,0.004]
[1739472729628,0.3197272,95805.0,95800.0,0.101]
[1739472729629,0.2087359,95801.0,95800.0,0.101]
[1739472729827,0.3187359,95801.0,95800.0,0.101]
[1739472730331,0.11,95801.0,95761.0,0.2088229]
[1739472730521,0.3608,95778.0,95762.0,0.2088191]
[1739472730720,0.3608,95776.0,95760.0,0.18853306]
[1739472730919,0.18853306,95770.0,95759.0,0.3608]
[1739472731122,0.30853306,95770.0,95759.0,0.3608]
[1739472731422,0.12,95770.0,95759.0,0.3608]
[1739472731730,0.12,95770.0,95769.0,0.5696057]
[1739472732124,0.12,95770.0,95768.0,0.3608]
[1739472732321,0.12,95770.0,95769.0,0.2088057]
[1739472732726,0.00015661,95774.0,95773.0,0.208797]
[1739472732927,0.00015661,95774.0,95773.0,0.569597]
[1739472733231,0.18853306,95820.0,95773.0,1.0508]
[1739472733431,0.18853306,95810.0,95796.0,0.3608]
[1739472733625,0.2087351,95802.0,95796.0,0.3608]
[1739472733820,0.02,95802.0,95796.0,0.3608]
[1739472734024,0.02,95802.0,95801.0,0.2087359]
[1739472734331,0.02,95802.0,95796.0,0.3608]
[1739472734727,0.02,95802.0,95796.0,0.001]
[1739472734931,0.2087447,95797.0,95796.0,0.001]
[1739472735133,0.3287447,95797.0,95796.0,0.001]
[1739472735435,0.2087479,95796.0,95789.0,0.00015661]
[1739472735728,0.1,95796.0,95789.0,0.00015661]
[1739472735934,0.1,95796.0,95794.0,0.2087496]
[1739472736231,0.1,95796.0,95794.0,0.5695496]
[1739472738135,0.208717,95810.0,95804.0,0.2087285]
[1739472738334,0.06,95810.0,95808.0,0.2087207]
[1739472738732,0.06,95810.0,95807.0,0.3608]
[1739472738934,0.2087207,95808.0,95807.0,0.3608]
[1739472739131,0.12,95808.0,95807.0,0.3608]
[1739472739334,0.12,95808.0,95807.0,0.5695229]
[1739472739936,0.006,95810.0,95809.0,0.2087185]
[1739472739937,0.003,95810.0,95809.0,0.2087185]
[1739472740133,0.003,95810.0,95809.0,0.21824627]
[1739472741039,0.00015661,95817.0,95809.0,0.00952777]
[1739472741243,0.02015661,95817.0,95816.0,0.3608]
[1739472741539,0.00156584,95834.0,95833.0,0.2086662]
[1739472741728,0.2086684,95832.0,95831.0,0.3608]
[1739472741934,0.03,95832.0,95831.0,0.3608]
[1739472743132,0.00156584,95834.0,95831.0,0.5688]
[1739472743336,0.01156584,95834.0,95832.0,0.5694682]
[1739472743736,0.00015652,95841.0,95832.0,0.3608]
[1739472743935,0.11015652,95841.0,95840.0,0.5694507]
[1739472744135,0.11015652,95841.0,95840.0,0.3608]
[1739472745036,0.11015652,95841.0,95840.0,0.569451]
[1739472745241,0.11215652,95841.0,95840.0,0.3608]
[1739472745444,0.2086684,95832.0,95831.0,0.001]
[1739472745640,0.3186684,95832.0,95831.0,0.001]
[1739472745833,0.11,95832.0,95822.0,0.00015652]
[1739472746029,0.208688,95823.0,95822.0,0.00015652]
[1739472746329,0.318688,95823.0,95822.0,0.00015652]
[1739472747832,0.11,95823.0,95822.0,0.00015652]
[1739472748343,0.11,95823.0,95822.0,0.00815652]
[1739472749140,0.119,95823.0,95822.0,0.00015652]
[1739472750344,0.114,95823.0,95822.0,0.00115652]
[1739472750546,0.3186878,95823.0,95822.0,0.00115652]
[1739472750742,0.3206878,95823.0,95822.0,0.00115652]
[1739472751239,0.3186878,95823.0,95822.0,0.00215652]
[1739472751446,0.6794878,95823.0,95822.0,0.00215652]
[1739472751643,0.2087248,95806.0,95805.0,0.00156567]
[1739472751833,0.3187248,95806.0,95805.0,0.00156567]
[1739472752236,0.11,95806.0,95805.0,0.00156567]
[1739472752845,0.11,95806.0,95805.0,0.00356567]
[1739472753443,0.11,95806.0,95805.0,0.00156567]
[1739472753644,0.113,95806.0,95805.0,0.20486567]
[1739472754253,0.116,95806.0,95805.0,0.20486567]
[1739472754545,0.2087446,95797.0,95796.0,0.00015652]
[1739472754747,0.6895446,95797.0,95796.0,2e-08]
[1739472755048,0.9895446,95797.0,95796.0,2e-08]
[1739472755241,0.6895446,95797.0,95796.0,2e-08]
[1739472755943,0.12,95797.0,95796.0,2e-08]
[1739472756150,0.6895446,95797.0,95796.0,2e-08]
[1739472756745,0.6935446,95797.0,95796.0,2e-08]
[1739472757545,0.6965446,95797.0,95796.0,2e-08]
[1739472758037,0.127,95797.0,95796.0,0.36080002]
[1739472758242,0.127,95797.0,95796.0,0.37066284]
[1739472758449,0.10317324,95797.0,95796.0,0.56120002]
[1739472758644,0.3608,95830.0,95814.0,0.2087076]
[1739472758947,0.03,95830.0,95825.0,0.2086837]
[1739472759154,0.02156605,95826.0,95825.0,0.5694837]
[1739472759458,0.23024755,95826.0,95825.0,0.3608]
[1739472760044,0.02156605,95826.0,95825.0,0.3608]
[1739472760650,0.12,95826.0,95825.0,0.3608]
[1739472760848,0.124,95826.0,95825.0,0.3608]
[1739472761251,0.12,95826.0,95825.0,0.3608]
[1739472761952,0.127,95826.0,95825.0,0.3608]
[1739472762659,0.123,95826.0,95825.0,0.3608]
[1739472762862,0.123,95826.0,95825.0,0.3618]
[1739472763354,0.12,95826.0,95825.0,0.3618]
[1739472764553,0.121,95826.0,95825.0,0.3618]
[1739472764753,0.121,95826.0,95825.0,0.559]
[1739472765153,0.12,95826.0,95825.0,0.559]
[1739472765855,0.12,95826.0,95825.0,0.558]
[1739472766057,0.121,95826.0,95825.0,0.558]
[1739472766951,0.12,95826.0,95825.0,0.559]
[1739472767554,0.00015652,95835.0,95834.0,0.2086641]
[1739472767764,0.01015652,95835.0,95834.0,0.5694641]
[1739472769064,0.01315652,95835.0,95834.0,0.5694641]
[1739472769255,0.2086105,95859.0,95858.0,0.2086075]
[1739472769461,0.2085968,95865.0,95860.0,0.2086075]
[1739472769667,0.13156545,95861.0,95860.0,0.2086075]
[1739472770652,0.13156545,95861.0,95851.0,0.00015652]
[1739472770653,0.007,95859.0,95840.0,0.00156511]
[1739472770857,0.3608,95841.0,95803.0,0.3608]
[1739472771062,0.4008,95841.0,95826.0,0.3608]
[1739472771261,0.4008,95841.0,95839.0,0.2086516]
[1739472771663,0.4008,95841.0,95826.0,0.3608]
[1739472771859,0.4008,95841.0,95830.0,0.00015652]
[1739472772060,0.04,95841.0,95830.0,0.00015652]
[1739472772264,0.04,95841.0,95839.0,0.2086509]
[1739472773057,0.4018,95841.0,95839.0,0.2086509]
[1739472773566,0.4018,95841.0,95831.0,0.3038]
[1739472773764,0.3608,95832.0,95831.0,0.1009]
[1739472773958,0.2086705,95831.0,95830.0,0.00015652]
[1739472774162,0.2087164,95810.0,95807.0,0.1009]
[1739472774564,0.00056001,95816.0,95807.0,0.1009]
[1739472774754,0.06,95816.0,95810.0,0.2087148]
[1739472774958,0.2087135,95812.0,95810.0,0.2087148]
[1739472775160,0.36140001,95814.0,95807.0,0.1009]
[1739472775361,0.00015652,95821.0,95811.0,0.2087129]
[1739472775671,0.2087092,95814.0,95811.0,0.2087129]
[1739472775868,0.3187092,95814.0,95811.0,0.2087129]
[1739472776163,0.001,95816.0,95810.0,0.2087152]
[1739472776358,0.071,95816.0,95810.0,0.2087152]
[1739472776555,0.071,95816.0,95811.0,0.2087125]
[1739472776763,0.3608,95814.0,95807.0,0.1079]
[1739472776970,0.2087193,95809.0,95807.0,0.1009]
[1739472777778,0.36136001,95814.0,95807.0,0.1009]
[1739472778064,0.3608,95814.0,95812.0,0.2087107]
[1739472779364,0.3608,95814.0,95812.0,0.2097107]
[1739472779563,0.4708,95814.0,95812.0,0.2097107]
[1739472780069,0.6795094,95814.0,95812.0,0.001]
[1739472780865,0.6805094,95814.0,95812.0,0.001]
[1739472781169,0.6805094,95814.0,95777.0,0.3608]
[1739472781170,0.0521831,95803.0,95782.0,0.2087769]
[1739472781470,0.3608,95792.0,95777.0,0.3608]
[1739472781670,0.4708,95792.0,95788.0,0.2087625]
[1739472781868,0.4708,95792.0,95782.0,0.00775777]
[1739472782063,0.4708,95792.0,95777.0,0.3608]
[1739472782064,0.4708,95792.0,95781.0,0.2087782]
[1739472782264,0.679557,95792.0,95788.0,0.2087633]
[1739472782465,0.4708,95792.0,95791.0,0.2087575]
[1739472782663,0.4708,95792.0,95790.0,0.2087585]
[1739472783061,0.4708,95792.0,95784.0,0.2087727]
[1739472783269,0.4708,95792.0,95781.0,0.007]
[1739472783270,0.4718,95792.0,95781.0,0.007]
[1739472783474,0.4718,95792.0,95791.0,0.2087575]
[1739472784169,0.2087618,95789.0,95788.0,0.003]
[1739472784364,0.06,95789.0,95787.0,0.2087653]
[1739472784568,0.00015652,95797.0,95787.0,0.2087653]
[1739472784771,0.00038046,111080.0,95787.0,0.2087653]
[1739472784772,0.00156608,95821.0,95806.0,0.0521811]
[1739472784961,0.21638586,95836.0,95817.0,0.3608]
[1739472785160,0.00772526,95836.0,95833.0,0.2086644]
[1739472785363,0.00772526,95836.0,95834.0,0.2086631]
[1739472785563,0.3608,95837.0,95834.0,0.2086631]
[1739472785765,0.4308,95837.0,95828.0,0.00793152]
[1739472785970,0.3608,95829.0,95826.0,0.00015652]
[1739472786172,0.2086769,95828.0,95827.0,0.2086791]
[1739472786364,0.3286769,95828.0,95827.0,0.2086791]
[1739472786564,0.3286769,95828.0,95826.0,0.00015652]
[1739472787059,0.4230769,95828.0,95826.0,0.00015652]
[1739472787672,0.2144,95828.0,95800.0,0.18853306]
[1739472787972,0.3608,95809.0,95807.0,0.2087207]
[1739472788169,0.4708,95809.0,95807.0,0.2087207]
[1739472788369,0.4552,95828.0,95807.0,0.3608]
[1739472788571,0.5652,95828.0,95827.0,0.2086792]
[1739472788872,0.5672,95828.0,95827.0,0.2086792]
[1739472789458,0.5652,95828.0,95827.0,0.2086792]
[1739472789869,0.5652,95828.0,95808.0,0.00010484]
[1739472790167,0.3608,95813.0,95811.0,0.2087128]
[1739472790670,0.6738779,95828.0,95826.0,0.2086801]
[1739472790872,0.5692,95828.0,95826.0,0.2086801]
[1739472791263,0.4748,95828.0,95826.0,0.2086801]
[1739472791469,0.114,95828.0,95826.0,0.2086801]
[1739472791777,0.113,95828.0,95826.0,0.2086801]
[1739472792361,0.11,95828.0,95826.0,0.2086801]
[1739472792562,0.11,95828.0,95826.0,0.2096801]
[1739472792968,0.111,95828.0,95826.0,0.2096801]
[1739472793778,0.3196776,95828.0,95826.0,0.2096801]
[1739472794567,0.3196776,95828.0,95826.0,0.2086801]
[1739472795175,0.2086889,95823.0,95822.0,0.2086881]
[1739472795473,0.3186889,95823.0,95822.0,0.2086881]
[1739472796176,0.11,95823.0,95822.0,0.2086881]
[1739472796383,0.11,95823.0,95822.0,0.2106881]
[1739472796670,0.11,95823.0,95822.0,0.5714881]
[1739472797073,0.00015652,95837.0,95836.0,0.2086597]
[1739472797274,0.102,95857.0,95836.0,0.3608]
[1739472797572,0.3608,95878.0,95855.0,0.2086183]
[1739472797573,8e-08,95856.0,95855.0,0.2086183]
[1739472797781,0.06,95856.0,95855.0,0.5694183]
[1739472798281,0.06,95856.0,95855.0,0.57705553]
[1739472798570,0.06,95856.0,95855.0,0.2086183]
[1739472798777,0.2086282,95851.0,95846.0,0.18853306]
[1739472799083,0.2156162,95856.0,95855.0,0.001]
[1739472799267,0.3516162,95856.0,95855.0,0.002]
[1739472800264,0.3516162,95856.0,95846.0,0.00015652]
[1739472800265,0.2086357,95847.0,95846.0,0.00015652]
[1739472800479,0.5994357,95847.0,95846.0,0.00015652]
[1739472801571,0.5994357,95847.0,95825.0,0.3608]
[1739472801572,0.2086597,95836.0,95825.0,0.3608]
[1739472801771,0.2086696,95832.0,95825.0,0.3608]
[1739472801974,0.3186696,95832.0,95825.0,0.3608]
[1739472802168,0.11,95832.0,95825.0,0.3608]
[1739472802383,0.11,95832.0,95830.0,0.208671]
[1739472802876,0.001,95832.0,95830.0,0.208671]
[1739472803382,0.00015652,95838.0,95825.0,0.36948114]
[1739472803679,0.002,95832.0,95831.0,0.2086706]
[1739472804676,0.122,95832.0,95825.0,0.3608]
[1739472804981,0.2086814,95827.0,95825.0,0.3608]
[1739472805279,0.2086814,95827.0,95825.0,0.5694826]
[1739472806076,0.005,95832.0,95825.0,0.3608]
[1739472806272,0.2086689,95832.0,95831.0,0.2086696]
[1739472806475,0.001,95827.0,95826.0,0.2086812]
[1739472807381,0.00015652,95838.0,95837.0,0.2086575]
[1739472807579,0.00789242,95875.0,95837.0,0.2086575]
[1739472807580,0.3608,95890.0,95837.0,0.3608]
[1739472807779,0.11156528,95869.0,95868.0,0.20859]
[1739472808779,0.11556528,95869.0,95868.0,0.20859]
[1739472809082,0.2085969,95865.0,95863.0,0.2086006]
[1739472809380,0.007,95869.0,95868.0,0.2095889]
[1739472809579,0.124,95869.0,95868.0,0.2105889]
[1739472811078,0.11,95869.0,95868.0,0.2085889]
[1739472811783,0.115,95869.0,95868.0,0.2095889]
[1739472811988,0.122,95869.0,95868.0,0.2105889]
[1739472813084,0.122,95869.0,95868.0,0.002]
[1739472815191,0.122,95869.0,95868.0,0.2105901]
[1739472815689,0.122,95869.0,95868.0,0.5713901]
[1739472815884,0.12184348,95869.0,95868.0,0.5713901]
[1739472816090,0.00015652,95878.0,95877.0,0.2085705]
[1739472816282,0.01015652,95878.0,95877.0,0.5693705]
[1739472817393,0.01715652,95878.0,95877.0,0.5703705]
[1739472817784,0.01815652,95878.0,95877.0,0.5713705]
[1739472817986,0.00115652,95878.0,95877.0,0.5703705]
[1739472818193,0.1,95900.0,95888.0,0.2085466]
[1739472818385,0.05156526,95889.0,95888.0,0.2085466]
[1739472821290,0.2085632,95881.0,95879.0,0.00015643]
[1739472821487,0.3608,95880.0,95879.0,0.00015643]
[1739472821683,0.4808,95880.0,95879.0,0.00015643]
[1739472824792,0.8416,95880.0,95860.0,0.2086064]
[1739472824989,0.5693992,95864.0,95861.0,0.2086052]
[1739472825189,0.4808,95864.0,95863.0,0.2086009]
[1739472826798,0.12,95864.0,95863.0,0.2086009]
[1739472827391,0.3285988,95864.0,95861.0,0.002]
[1739472827592,0.5694031,95862.0,95861.0,0.002]
[1739472827798,0.12,95862.0,95857.0,0.3047139]
[1739472828001,0.2086118,95858.0,95857.0,0.3047139]
[1739472828297,0.2086184,95855.0,95854.0,0.09495643]
[1739472828502,0.2886184,95855.0,95854.0,0.00015643]
[1739472829092,0.6494184,95855.0,95854.0,0.00015643]
[1739472829606,0.2886184,95855.0,95854.0,0.20877693]
[1739472829803,0.08,95855.0,95854.0,0.20877693]
[1739472830504,0.2886184,95855.0,95854.0,0.20877693]
[1739472830905,0.08,95855.0,95854.0,0.20877693]
[1739472831301,0.08,95855.0,95854.0,0.57157693]
[1739472831602,0.00015643,95873.0,95872.0,0.2085814]
[1739472831903,0.13015643,95873.0,95872.0,0.2085814]
[1739472832509,0.13015643,95873.0,95854.0,0.00015643]
[1739472832802,0.2086099,95859.0,95855.0,0.208618]
[1739472833005,0.12,95859.0,95854.0,0.00015643]
[1739472833601,0.12,95859.0,95857.0,0.2086129]
[1739472835898,0.00015643,95873.0,95872.0,0.2085814]
[1739472836102,0.08015643,95873.0,95872.0,0.2085814]
[1739472837201,0.2085873,95870.0,95868.0,0.2085897]
[1739472837401,0.3285873,95870.0,95868.0,0.2085897]
[1739472837604,0.12,95870.0,95868.0,0.2085897]
[1739472837998,0.3285869,95870.0,95868.0,0.2085897]
[1739472839011,0.2085955,95866.0,95863.0,0.0991]
[1739472839302,0.3385955,95866.0,95863.0,0.0991]
[1739472839514,0.208584,95871.0,95863.0,0.0991]
[1739472839700,0.328584,95871.0,95863.0,0.0991]
[1739472840205,0.12,95871.0,95870.0,0.2085855]
[1739472841603,0.00015643,95873.0,95872.0,0.2085814]
[1739472841810,0.10015643,95873.0,95872.0,0.5693814]
[1739472842106,0.30873563,95873.0,95872.0,0.5693814]
[1739472842507,0.10015643,95873.0,95872.0,0.2085814]
[1739472842905,0.2085988,95864.0,95863.0,0.002]
[1739472843093,0.2086037,95862.0,95861.0,0.2086024]
[1739472843298,0.3386037,95862.0,95861.0,0.2086024]
[1739472843797,0.2086037,95862.0,95861.0,0.2086024]
[1739472844000,0.2085906,95868.0,95867.0,0.2085922]
[1739472844200,0.1,95868.0,95867.0,0.2085922]
[1739472844407,0.00015643,95873.0,95872.0,0.2085813]
[1739472844600,0.08015643,95873.0,95872.0,0.2085813]
[1739472845005,0.28873533,95873.0,95872.0,0.2085813]
[1739472845199,0.08015643,95873.0,95872.0,0.2085813]
[1739472845403,0.27393045,95878.0,95877.0,0.2085702]
[1739472845602,0.38393045,95878.0,95877.0,0.2085702]
[1739472846410,0.11,95878.0,95877.0,0.5693702]
[1739472846999,0.3185683,95878.0,95877.0,0.2085702]
[1739472847215,0.2085845,95873.0,95872.0,0.208581]
[1739472847402,0.11,95873.0,95872.0,0.208581]
[1739472848902,0.00015643,95887.0,95886.0,0.2085509]
[1739472849107,0.00015643,95887.0,95886.0,0.5693509]
[1739472850202,0.00015643,95887.0,95886.0,0.5703509]
[1739472850407,0.00015643,95887.0,95886.0,0.5713509]
[1739472850800,0.00015643,95887.0,95886.0,0.9321509]
[1739472851416,1e-08,95887.0,95886.0,0.9321509]
[1739472853314,0.12000001,95887.0,95886.0,0.9321509]
[1739472853517,1e-08,95887.0,95886.0,0.9321509]
[1739472853815,0.12000001,95887.0,95886.0,0.9321509]
[1739472854017,1e-08,95887.0,95886.0,0.9321509]
[1739472860710,1e-08,95900.0,95899.0,0.2085226]
[1739472860911,1e-08,95900.0,95899.0,0.5693226]
[1739472862120,1e-08,95900.0,95899.0,0.5703226]
[1739472863106,1e-08,95900.0,95899.0,0.57997997]
[1739472863723,0.20852051,95900.0,95899.0,0.58097997]
[1739472863918,1e-08,95900.0,95899.0,0.58097997]
[1739472865324,0.25852051,95900.0,95899.0,0.22017997]
[1739472865616,0.25852051,95900.0,95899.0,0.22018007]
[1739472866126,0.25852051,95900.0,95899.0,0.002]
[1739472873131,0.2085683,95878.0,95874.0,0.2085758]
[1739472873319,0.2185683,95878.0,95860.0,0.60262746]
[1739472873523,0.2185683,95878.0,95877.0,0.20872693]
[1739472873524,0.01,95878.0,95877.0,0.20872693]
[1739472873827,0.01,95878.0,95877.0,0.218384]
[1739472875229,0.3608,95912.0,95899.0,0.2085227]
[1739472875425,0.09000001,95900.0,95899.0,0.2085227]
[1739472876323,0.09100001,95900.0,95899.0,0.2105227]
[1739472877032,0.29952051,95900.0,95899.0,0.002]
[1739472878230,0.2085466,95888.0,95887.0,0.2085467]
[1739472878427,0.3285466,95888.0,95887.0,0.2085467]
[1739472880636,0.12,95888.0,95887.0,0.2085488]
[1739472880830,0.3285466,95888.0,95887.0,0.2085488]
[1739472881026,0.12,95888.0,95887.0,0.2085488]
[1739472882339,0.3285466,95888.0,95887.0,0.2085488]
[1739472882937,0.12,95888.0,95877.0,0.00975612]
[1739472883276,0.12,95888.0,95877.0,0.21832602]
[1739472883277,0.2085683,95878.0,95877.0,0.21832602]
[1739472883473,0.3608,95880.0,95879.0,0.2085662]
[1739472883660,0.3708,95880.0,95879.0,0.2085662]
[1739472884457,0.579364,95880.0,95879.0,0.2085662]
[1739472884645,0.2085683,95878.0,95877.0,0.00975612]
[1739472884852,0.2085683,95878.0,95877.0,0.00015643]
[1739472885048,0.2185683,95878.0,95877.0,0.00015643]
[1739472885855,0.2195683,95878.0,95877.0,1e-08]
[1739472886169,0.011,95878.0,95863.0,0.2086003]
[1739472886360,0.2086065,95861.0,95851.0,0.1027]
[1739472886658,0.2086065,95861.0,95860.0,0.2086075]
[1739472886659,0.2186065,95861.0,95860.0,0.2086075]
[1739472886856,0.2186065,95861.0,95851.0,0.1124398]
[1739472886857,0.01,95861.0,95851.0,0.1124398]
[1739472887056,0.2086163,95856.0,95855.0,0.208618]
[1739472887264,0.0944,95865.0,95851.0,0.11259623]
[1739472887464,0.2086055,95861.0,95858.0,0.2086116]
[1739472887763,0.2086077,95860.0,95858.0,0.2086116]
[1739472887967,0.3386077,95860.0,95858.0,0.2086116]
[1739472888562,0.3386077,95860.0,95858.0,0.2136116]
[1739472888955,0.3386077,95860.0,95858.0,0.2166116]
[1739472890047,0.2086095,95859.0,95858.0,0.008]
[1739472890249,0.2186095,95859.0,95858.0,0.008]
[1739472891253,0.2186095,95859.0,95858.0,0.005]
[1739472891444,0.2186095,95859.0,95858.0,0.008]
[1739472891750,0.2186095,95859.0,95858.0,0.2166116]
[1739472892550,0.01,95859.0,95858.0,0.2166116]
[1739472893951,0.2186096,95859.0,95858.0,0.008]
[1739472895850,0.2186096,95859.0,95858.0,0.2166117]
[1739472896051,0.01,95859.0,95858.0,0.2166117]
[1739472896445,0.00015643,95870.0,95858.0,0.008]
[1739472896644,0.08015643,95870.0,95869.0,0.2085878]
[1739472897944,0.08115643,95870.0,95869.0,0.2085878]
[1739472898347,0.28974203,95870.0,95869.0,0.2085878]
[1739472898551,0.28974203,95870.0,95869.0,0.2095878]
[1739472898856,0.08115643,95870.0,95869.0,0.2095878]
[1739472899246,0.08115643,95870.0,95869.0,0.5703878]
[1739472899449,0.00156488,95889.0,95888.0,0.2085465]
[1739472899646,0.11156488,95889.0,95888.0,0.2085465]
[1739472900248,0.2085586,95884.0,95883.0,0.2085545]
[1739472900555,0.00156488,95889.0,95888.0,0.2085465]
[1739472900745,1e-08,95893.0,95892.0,0.2085378]
[1739472902947,1e-08,95893.0,95892.0,0.2095378]
[1739472903558,1e-08,95893.0,95892.0,0.2105378]
[1739472905247,0.01000001,95893.0,95892.0,0.2105378]
[1739472905452,0.01000001,95893.0,95892.0,0.002]
[1739472906860,0.20852081,95900.0,95892.0,0.002]
[1739472907062,0.03000001,95900.0,95898.0,0.2085231]
[1739472907559,0.03000001,95900.0,95898.0,0.5693231]
[1739472907763,0.03000001,95900.0,95899.0,0.0971]
[1739472910064,0.03000001,95900.0,95899.0,0.0981]
[1739472910265,0.03000001,95900.0,95899.0,0.1962]
[1739472912668,0.23852041,95900.0,95899.0,0.002]
[1739472912867,0.23852041,95900.0,95899.0,0.2105226]
[1739472913069,0.03000001,95900.0,95899.0,0.2105226]
[1739472914967,1e-08,95900.0,95899.0,0.2105226]
[1739472917865,0.20852041,95900.0,95899.0,0.2105226]
[1739472918067,0.20852041,95900.0,95899.0,0.002]
[1739472918261,0.33852041,95900.0,95899.0,0.002]
[1739472919665,0.56200599,95915.0,95913.0,0.208492]
[1739472919856,0.20849,95914.0,95913.0,0.208492]
[1739472920062,0.25849,95914.0,95913.0,0.208492]
[1739472921071,0.25849,95914.0,95913.0,0.209492]
[1739472921569,0.25849,95914.0,95913.0,0.001]
[1739472921870,0.25849,95914.0,95913.0,0.002]
[1739472922064,0.2085095,95905.0,95904.0,0.00015643]
[1739472922256,0.6993095,95905.0,95904.0,1e-08]
[1739472923267,0.70901094,95905.0,95904.0,1e-08]
[1739472923465,0.2085398,95891.0,95890.0,0.00156428]
[1739472923670,0.3385398,95891.0,95890.0,0.00156428]
[1739472924062,0.4402398,95891.0,95890.0,0.00156428]
[1739472924462,0.3385398,95891.0,95890.0,0.00156428]
[1739472924771,0.3385398,95891.0,95890.0,0.00256428]
[1739472924972,0.3395398,95891.0,95890.0,0.00356428]
[1739472925171,0.3395398,95891.0,95890.0,0.21210638]
[1739472925372,0.131,95891.0,95890.0,0.21210638]
[1739472925763,0.131,95891.0,95890.0,0.31750638]
[1739472925962,0.0962,95912.0,95890.0,0.10896428]
[1739472926164,0.4246945,95912.0,95911.0,0.2084965]
[1739472926673,0.4246945,95912.0,95902.0,0.1254922]
[1739472926674,0.208504,95908.0,95905.0,0.2085079]
[1739472926968,0.2085139,95903.0,95902.0,0.00015643]
[1739472927165,0.2085139,95903.0,95902.0,0.0102093]
[1739472927166,0.5793139,95903.0,95902.0,0.0102093]
[1739472927374,0.20854,95891.0,95890.0,0.00156428]
[1739472927572,0.31854,95891.0,95890.0,0.00156428]
[1739472929367,0.31954,95891.0,95890.0,0.00256428]
[1739472930373,0.31954,95891.0,95890.0,0.00356428]
[1739472930568,0.2085596,95882.0,95881.0,0.00015643]
[1739472930770,0.6793596,95882.0,95881.0,0.00015643]
[1739472931375,0.2085965,95865.0,95864.0,0.2]
[1739472931673,0.2086031,95862.0,95860.0,0.00156459]
[1739472931872,0.2186031,95862.0,95860.0,0.00156459]
[1739472932268,0.01,95862.0,95860.0,0.21017139]
[1739472932471,0.01,95862.0,95860.0,0.22018527]
[1739472933376,0.2186033,95862.0,95860.0,0.01157847]
[1739472933877,0.2186033,95862.0,95860.0,0.01357847]
[1739472934079,0.2186033,95862.0,95860.0,0.01757847]
[1739472934279,0.00015643,95871.0,95860.0,0.01757847]
[1739472934578,0.2085995,95864.0,95861.0,0.2086045]
[1739472934780,0.2185995,95864.0,95861.0,0.2086045]
[1739472935274,0.2185995,95864.0,95860.0,0.01757847]
[1739472935480,0.00015643,95871.0,95870.0,0.2085856]
[1739472936776,0.20873993,95871.0,95870.0,0.2085856]
[1739472936977,0.21873993,95871.0,95870.0,0.2085856]
[1739472937177,0.21973993,95871.0,95870.0,0.2085856]
[1739472938589,0.01115643,95871.0,95870.0,0.2085856]
[1739472939278,0.01115643,95871.0,95870.0,0.5693856]
[1739472939884,0.01115643,95871.0,95870.0,0.2085856]
[1739472940086,0.01115643,95871.0,95862.0,0.3608]
[1739472940276,0.2086052,95861.0,95860.0,0.22018517]
[1739472941284,0.3186052,95861.0,95860.0,0.22018517]
[1739472941470,0.3186052,95861.0,95860.0,0.01157847]
[1739472941787,0.3186052,95861.0,95860.0,0.00156459]
[1739472941983,0.3186052,95861.0,95860.0,0.00556459]
[1739472942383,0.2086248,95852.0,95851.0,0.00015643]
[1739472942576,0.2286248,95852.0,95851.0,0.00015643]
[1739472943581,0.2286248,95852.0,95851.0,0.00715643]
[1739472943787,0.2286248,95852.0,95851.0,0.01215643]
[1739472944289,0.2286248,95852.0,95851.0,0.22078343]